fUSD/lending_fUSD_20241221
["ID","MTS","AMOUNT","RATE_DAILY","PERIOD"]
[346188996,1734769863288,-500.0,0.00019892,2]
[346188997,1734769863297,-1349.74,0.00019892,2]
[346188998,1734769863307,-500.0,0.00019892,2]
[346188999,1734769863317,-500.0,0.00019892,2]
[346189000,1734769863326,-1612.89,0.00019892,2]
[346189001,1734769863336,-500.0,0.00019892,2]
[346189002,1734769863345,-500.0,0.00019892,2]
[346189003,1734769863355,-2066.3,0.00019892,2]
[346189004,1734769863364,-500.0,0.00019892,2]
[346189005,1734769863374,-500.0,0.00019892,2]
[346189006,1734769863383,-500.0,0.00019892,2]
[346189007,1734769863392,-500.0,0.00019892,2]
[346189008,1734769863402,-500.0,0.00019892,2]
[346189009,1734769863412,-500.0,0.00019892,2]
[346189010,1734769863421,-615.9,0.00019892,2]
[346189011,1734769863431,-1184.33,0.00019892,2]
[346189012,1734769863440,-500.0,0.00019892,2]
[346189013,1734769863449,-500.0,0.00019892,2]
[346189014,1734769863458,-2103.98,0.00019892,2]
[346189015,1734769863468,-502.22461848,0.00019892,2]
[346189016,1734769863477,-1834.81,0.00019892,2]
[346189017,1734769863486,-500.0,0.00019892,2]
[346189018,1734769863495,-500.0,0.00019892,2]
[346189019,1734769863508,-500.0,0.00019892,2]
[346189020,1734769863517,-4676.27,0.00019892,2]
[346189021,1734769863527,-500.0,0.00019892,2]
[346189022,1734769863536,-500.0,0.00019892,2]
[346189023,1734769863545,-500.0,0.00019892,2]
[346189024,1734769863555,-500.0,0.00019892,2]
[346189025,1734769863564,-3208.63,0.00019892,2]
[346189026,1734769863574,-500.0,0.00019892,2]
[346189027,1734769863583,-500.0,0.00019892,2]
[346189028,1734769863592,-585.77360062,0.00019892,2]
[346189029,1734769863601,-500.0,0.00019892,2]
[346189030,1734769863611,-500.0,0.00019892,2]
[346189031,1734769863621,-500.0,0.00019892,2]
[346189032,1734769863630,-192.24294127,0.00019892,2]
[346189033,1734769863640,-500.0,0.00019892,2]
[346189034,1734769863650,-2622.64,0.00019892,2]
[346189035,1734769863659,-729.95,0.00019892,2]
[346189036,1734769863669,-500.0,0.00019892,2]
[346189037,1734769863679,-500.0,0.00019892,2]
[346189038,1734769863688,-1522.05,0.00019892,2]
[346189039,1734769863697,-500.0,0.00019892,2]
[346189040,1734769863706,-500.0,0.00019892,2]
[346189041,1734769863716,-500.0,0.00019892,2]
[346189042,1734769863726,-510.15649657,0.00019892,2]
[346189043,1734769863735,-500.0,0.00019892,2]
[346189044,1734769863745,-5000.0,0.00019892,10]
[346189045,1734769863755,-872.79,0.00019892,2]
[346189046,1734769863764,-500.0,0.00019892,2]
[346189047,1734769863773,-500.0,0.00019892,2]
[346189048,1734769863783,-500.0,0.00019892,2]
[346189049,1734769863792,-554.69,0.00019892,2]
[346189050,1734769863802,-500.0,0.00019892,2]
[346189051,1734769863812,-1740.06,0.00019892,2]
[346189052,1734769863822,-558.08580562,0.00019892,2]
[346189053,1734769863831,-8313.36,0.00019892,2]
[346189054,1734769863841,-500.0,0.00019892,2]
[346189055,1734769863851,-500.0,0.00019892,2]
[346189056,1734769863861,-151.724004,0.00019893,2]
[346189057,1734769863870,-151.0,0.00019893,2]
[346189058,1734769863880,-151.0,0.00019893,2]
[346189059,1734769863890,-151.69079,0.00019893,2]
[346189060,1734769863900,-151.0,0.00019893,2]
[346189061,1734769863909,-151.0,0.00019893,2]
[346189062,1734769863919,-151.0,0.00019893,2]
[346189063,1734769863929,-807.11,0.00019893,2]
[346189064,1734769863939,-1622.3,0.00019893,2]
[346189065,1734769863948,-2408.36,0.00019893,2]
[346189066,1734769863958,-1853.05,0.00019893,2]
[346189067,1734769863967,-500.0,0.00019893,2]
[346189068,1734769863977,-500.0,0.00019893,2]
[346189069,1734769863987,-599.34,0.00019893,2]
[346189070,1734769863996,-1437.49,0.00019893,2]
[346189071,1734769864008,-2962.33,0.00019893,2]
[346189072,1734769864018,-1377.35,0.00019893,2]
[346189073,1734769864027,-4029.78,0.00019893,2]
[346189074,1734769864037,-1342.55,0.00019893,2]
[346189075,1734769864050,-150.0,0.00019895,4]
[346189076,1734769864059,-167.81,0.000199,2]
[346189077,1734769864069,-200.0,0.000199,2]
[346189078,1734769864078,-2000.0,0.000199,2]
[346189079,1734769864089,-200.0,0.000199,2]
[346189080,1734769864098,-400.0,0.000199,7]
[346189081,1734769864107,-1000.0,0.00019921,2]
[346189082,1734769864117,-2000.0,0.00019932,2]
[346189083,1734769864126,-3000.0,0.0001996,2]
[346189084,1734769864137,-500.0,0.00019973,2]
[346189085,1734769864147,-500.0,0.00019973,2]
[346189086,1734769864157,-500.0,0.00019973,2]
[346189087,1734769864167,-185.74683461,0.00019973,2]
[346189088,1734769864178,-500.0,0.00019973,2]
[346189089,1734769864188,-150.0,0.00019976,4]
[346189090,1734769864199,-300.0,0.00019979,2]
[346189091,1734769864209,-3292.84971054,0.0001998,2]
[346189092,1734769864218,-2323516.03550952,0.0001998,2]
[346189093,1734769864228,-151.0,0.0001998,2]
[346189094,1734769864237,-151.0,0.0001998,2]
[346189095,1734769864247,-151.0,0.0001998,2]
[346189096,1734769864261,-158.46012,0.0001998,2]
[346189097,1734769864270,-151.0,0.0001998,2]
[346189098,1734769864280,-151.0,0.0001998,2]
[346189099,1734769864290,-151.0,0.0001998,2]
[346189100,1734769864300,-1665.688369,0.0001998,2]
[346189101,1734769864309,-1665.688369,0.0001998,2]
[346189102,1734769864319,-151.0,0.0001998,2]
[346189103,1734769864329,-151.0,0.0001998,2]
[346189104,1734769864340,-151.0,0.0001998,2]
[346189105,1734769864350,-151.0,0.0001998,2]
[346189106,1734769864360,-297.223263,0.0001998,2]
[346189107,1734769864369,-297.223263,0.0001998,2]
[346189108,1734769864379,-1079.48,0.00019984,2]
[346189109,1734769864389,-151.0,0.00019992,2]
[346189110,1734769864399,-152.499713,0.00019992,2]
[346189111,1734769864408,-151.382943,0.00019992,2]
[346189112,1734769864417,-500.0,0.00019992,2]
[346189113,1734769864427,-896.14,0.00019992,2]
[346189114,1734769864437,-560.27,0.00019992,2]
[346189115,1734769864446,-518.18,0.00019992,2]
[346189116,1734769864456,-500.0,0.00019992,2]
[346189117,1734769864466,-748.73,0.00019992,2]
[346189118,1734769864477,-771.79,0.00019992,2]
[346189119,1734769864487,-500.0,0.00019992,2]
[346189120,1734769864498,-1095.4,0.00019992,2]
[346189121,1734769864513,-500.0,0.00019992,2]
[346189122,1734769864523,-1543.7,0.00019992,2]
[346189123,1734769864533,-684.8,0.00019992,2]
[346189124,1734769864543,-836.87,0.00019992,2]
[346189125,1734769864552,-500.0,0.00019992,2]
[346189126,1734769864563,-500.0,0.00019992,2]
[346189127,1734769864572,-500.0,0.00019992,2]
[346189128,1734769864582,-934.15,0.00019992,2]
[346189129,1734769864592,-500.0,0.00019992,2]
[346189130,1734769864602,-719.72,0.00019992,2]
[346189131,1734769864611,-506.19,0.00019992,2]
[346189132,1734769864621,-521.06,0.00019992,2]
[346189133,1734769864630,-832.43,0.00019992,2]
[346189134,1734769864639,-671.61,0.00019992,2]
[346189135,1734769864648,-653.84,0.00019992,2]
[346189136,1734769864658,-880.14,0.00019992,2]
[346189137,1734769864667,-692.41,0.00019992,2]
[346189138,1734769864676,-1000.59,0.00019992,2]
[346189139,1734769864685,-1101.22,0.00019992,2]
[346189140,1734769864694,-657.85,0.00019992,2]
[346189141,1734769864704,-500.0,0.00019992,2]
[346189142,1734769864713,-500.0,0.00019992,2]
[346189143,1734769864723,-774.6,0.00019992,2]
[346189144,1734769864732,-500.0,0.00019992,2]
[346189145,1734769864742,-500.0,0.00019992,2]
[346189146,1734769864754,-954.05,0.00019992,2]
[346189147,1734769864763,-1138.7,0.00019992,2]
[346189148,1734769864772,-500.0,0.00019992,2]
[346189149,1734769864781,-929.19,0.00019992,2]
[346189150,1734769864791,-754.06,0.00019992,2]
[346189151,1734769864800,-500.0,0.00019992,2]
[346189152,1734769864809,-673.28,0.00019992,2]
[346189153,1734769864818,-581.25,0.00019992,2]
[346189154,1734769864827,-675.51,0.00019992,2]
[346189155,1734769864837,-1127.19,0.00019992,2]
[346189156,1734769864846,-500.0,0.00019992,2]
[346189157,1734769864856,-1260.74,0.00019992,2]
[346189158,1734769864865,-503.55,0.00019992,2]
[346189159,1734769864874,-1143.47,0.00019992,2]
[346189160,1734769864884,-829.64,0.00019992,2]
[346189161,1734769864893,-500.0,0.00019992,2]
[346189162,1734769864903,-500.0,0.00019992,2]
[346189163,1734769864912,-500.0,0.00019992,2]
[346189164,1734769864922,-500.0,0.00019992,2]
[346189165,1734769864932,-500.0,0.00019992,2]
[346189166,1734769864943,-766.03,0.00019992,2]
[346189167,1734769864952,-551.84,0.00019992,2]
[346189168,1734769864962,-500.0,0.00019992,2]
[346189169,1734769864971,-508.5,0.00019992,2]
[346189170,1734769864981,-749.47,0.00019992,2]
[346189171,1734769864990,-500.0,0.00019992,2]
[346189172,1734769865000,-1147.83,0.00019992,2]
[346189173,1734769865012,-959.63,0.00019992,2]
[346189174,1734769865021,-895.71,0.00019992,2]
[346189175,1734769865031,-869.86,0.00019992,2]
[346189176,1734769865045,-1036.93,0.00019992,2]
[346189177,1734769865056,-1138.3,0.00019992,2]
[346189178,1734769865065,-500.0,0.00019992,2]
[346189179,1734769865075,-500.0,0.00019992,2]
[346189180,1734769865086,-500.0,0.00019992,2]
[346189181,1734769865095,-1010.11,0.00019992,2]
[346189182,1734769865106,-717.94,0.00019992,2]
[346189183,1734769865116,-866.44,0.00019992,2]
[346189184,1734769865126,-472.58001437,0.00019994,2]
[346189185,1734769865136,-500.0,0.00019994,2]
[346189186,1734769865146,-218.46026678,0.00019994,2]
[346189187,1734769865155,-328.70109905,0.00019994,2]
[346189188,1734769865165,-500.0,0.00019994,2]
[346189189,1734769865174,-500.0,0.00019994,2]
[346189190,1734769865184,-500.0,0.00019994,2]
[346189191,1734769865193,-500.0,0.00019994,2]
[346189192,1734769865203,-500.0,0.00019994,2]
[346189193,1734769865212,-500.0,0.00019994,2]
[346189194,1734769865223,-500.0,0.00019994,2]
[346189195,1734769865232,-505.85623494,0.00019994,2]
[346189196,1734769865242,-500.0,0.00019994,2]
[346189197,1734769865251,-520.73,0.00019994,2]
[346189198,1734769865263,-231.98546262,0.00019994,2]
[346189199,1734769865272,-510.31658964,0.00019994,2]
[346189200,1734769865281,-500.0,0.00019994,2]
[346189201,1734769865291,-500.0,0.00019994,2]
[346189202,1734769865301,-500.0,0.00019994,2]
[346189203,1734769865310,-500.0,0.00019994,2]
[346189204,1734769865319,-500.0,0.00019994,2]
[346189205,1734769865328,-591.39471939,0.00019994,2]
[346189206,1734769865338,-500.0,0.00019994,2]
[346189207,1734769865347,-500.0,0.00019994,2]
[346189208,1734769865356,-500.0,0.00019994,2]
[346189209,1734769865365,-500.0,0.00019994,2]
[346189210,1734769865375,-500.0,0.00019994,2]
[346189211,1734769865384,-500.0,0.00019994,2]
[346189212,1734769865393,-500.0,0.00019994,2]
[346189213,1734769865403,-500.0,0.00019994,2]
[346189214,1734769865412,-500.0,0.00019994,2]
[346189215,1734769865421,-500.0,0.00019994,2]
[346189216,1734769865431,-500.0,0.00019994,2]
[346189217,1734769865440,-341.55675502,0.00019994,2]
[346189218,1734769865450,-502.364136,0.00019994,2]
[346189219,1734769865459,-500.0,0.00019994,2]
[346189220,1734769865468,-815.52,0.00019994,2]
[346189221,1734769865477,-500.0,0.00019994,2]
[346189222,1734769865487,-500.0,0.00019994,2]
[346189223,1734769865496,-501.35596014,0.00019994,2]
[346189224,1734769865507,-502.47508725,0.00019994,2]
[346189225,1734769865516,-509.74025556,0.00019994,2]
[346189226,1734769865525,-500.0,0.00019994,2]
[346189227,1734769865535,-500.0,0.00019994,2]
[346189228,1734769865545,-500.0,0.00019994,2]
[346189229,1734769865554,-500.0,0.00019994,2]
[346189230,1734769865563,-500.0,0.00019994,2]
[346189231,1734769865572,-500.0,0.00019994,2]
[346189232,1734769865582,-500.0,0.00019994,2]
[346189233,1734769865591,-500.0,0.00019994,2]
[346189234,1734769865601,-500.0,0.00019994,2]
[346189235,1734769865611,-500.0,0.00019994,2]
[346189236,1734769865620,-500.0,0.00019994,2]
[346189237,1734769865631,-500.0,0.00019994,2]
[346189238,1734769865640,-500.0,0.00019994,2]
[346189239,1734769865651,-500.0,0.00019994,2]
[346189240,1734769865660,-500.0,0.00019994,2]
[346189241,1734769865670,-690.78,0.00019994,2]
[346189242,1734769865680,-500.0,0.00019994,2]
[346189243,1734769865690,-500.0,0.00019994,2]
[346189244,1734769865701,-500.0,0.00019994,2]
[346189245,1734769865710,-500.0,0.00019994,2]
[346189246,1734769865720,-156.280385,0.00019994,2]
[346189247,1734769865729,-500.0,0.00019994,2]
[346189248,1734769865738,-500.0,0.00019994,2]
[346189249,1734769865747,-500.0,0.00019994,2]
[346189250,1734769865759,-249.646144,0.00019994,2]
[346189251,1734769865770,-500.0,0.00019994,2]
[346189252,1734769865780,-500.0,0.00019994,2]
[346189253,1734769865790,-500.0,0.00019994,2]
[346189254,1734769865799,-500.0,0.00019994,2]
[346189255,1734769865809,-500.0,0.00019994,2]
[346189256,1734769865819,-500.0,0.00019994,2]
[346189257,1734769865830,-500.0,0.00019994,2]
[346189258,1734769865840,-152.068052,0.00019994,2]
[346189259,1734769865849,-502.5481345,0.00019994,2]
[346189260,1734769865859,-500.0,0.00019994,2]
[346189261,1734769865868,-500.0,0.00019994,2]
[346189262,1734769865877,-437.22693411,0.00019994,2]
[346189263,1734769865887,-500.0,0.00019994,2]
[346189264,1734769865897,-718.77,0.00019994,2]
[346189265,1734769865906,-500.0,0.00019994,2]
[346189266,1734769865916,-500.0,0.00019994,2]
[346189267,1734769865925,-632.48,0.00019994,2]
[346189268,1734769865934,-500.0,0.00019994,2]
[346189269,1734769865944,-500.0,0.00019994,2]
[346189270,1734769865954,-743.32,0.00019994,2]
[346189271,1734769865963,-500.0,0.00019994,2]
[346189272,1734769865972,-151.0,0.00019994,2]
[346189273,1734769865982,-549.62,0.00019994,2]
[346189274,1734769865991,-151.0,0.00019994,2]
[346189275,1734769866000,-500.0,0.00019994,2]
[346189276,1734769866012,-500.0,0.00019994,2]
[346189277,1734769866021,-151.0,0.00019994,2]
[346189278,1734769866030,-151.0,0.00019994,2]
[346189279,1734769866040,-787.15,0.00019994,2]
[346189280,1734769866054,-204.20942253,0.00019994,2]
[346189281,1734769866063,-1315.85,0.00019994,2]
[346189282,1734769866072,-500.0,0.00019994,2]
[346189283,1734769866082,-151.0,0.00019994,2]
[346189284,1734769866095,-371.77016134,0.00019994,2]
[346189285,1734769866104,-151.0,0.00019994,2]
[346189286,1734769866114,-500.0,0.00019994,2]
[346189287,1734769866125,-500.0,0.00019994,2]
[346189288,1734769866134,-500.0,0.00019994,2]
[346189289,1734769866143,-500.0,0.00019994,2]
[346189290,1734769866153,-500.0,0.00019994,2]
[346189291,1734769866163,-500.0,0.00019994,2]
[346189292,1734769866172,-704.01,0.00019994,2]
[346189293,1734769866181,-500.0,0.00019994,2]
[346189294,1734769866191,-151.0,0.00019994,2]
[346189295,1734769866200,-661.33,0.00019994,2]
[346189296,1734769866210,-526.74,0.00019994,2]
[346189297,1734769866220,-500.0,0.00019994,2]
[346189298,1734769866229,-500.0,0.00019994,2]
[346189299,1734769866239,-842.34,0.00019994,2]
[346189300,1734769866248,-500.0,0.00019994,2]
[346189301,1734769866258,-204.78180081,0.00019994,2]
[346189302,1734769866267,-757.69,0.00019994,2]
[346189303,1734769866277,-500.0,0.00019994,2]
[346189304,1734769866286,-500.0,0.00019994,2]
[346189305,1734769866295,-500.0,0.00019994,2]
[346189306,1734769866305,-500.0,0.00019994,2]
[346189307,1734769866315,-585.39,0.00019994,2]
[346189308,1734769866325,-503.39304087,0.00019994,2]
[346189309,1734769866334,-500.0,0.00019994,2]
[346189310,1734769866344,-151.0,0.00019994,2]
[346189311,1734769866354,-636.28,0.00019994,2]
[346189312,1734769866363,-221.069972,0.00019994,2]
[346189313,1734769866373,-151.0,0.00019994,2]
[346189314,1734769866383,-151.0,0.00019994,2]
[346189315,1734769866392,-223.317345,0.00019994,2]
[346189316,1734769866401,-890.26,0.00019994,2]
[346189317,1734769866411,-223.317345,0.00019994,2]
[346189318,1734769866421,-534.84,0.00019994,2]
[346189319,1734769866431,-151.0,0.00019994,2]
[346189320,1734769866441,-500.0,0.00019994,2]
[346189321,1734769866450,-151.0,0.00019994,2]
[346189322,1734769866459,-151.0,0.00019994,2]
[346189323,1734769866469,-932.08,0.00019994,2]
[346189324,1734769866478,-1831.761634,0.00019994,2]
[346189325,1734769866487,-151.0,0.00019994,2]
[346189326,1734769866496,-500.0,0.00019994,2]
[346189327,1734769866505,-1291.001743,0.00019994,2]
[346189328,1734769866515,-1134.01,0.00019994,2]
[346189329,1734769866525,-1291.001743,0.00019994,2]
[346189330,1734769866535,-600.68,0.00019994,2]
[346189331,1734769866544,-855.23,0.00019994,2]
[346189332,1734769866553,-1029.74,0.00019994,2]
[346189333,1734769866563,-500.0,0.00019994,2]
[346189334,1734769866572,-1143.08,0.00019994,2]
[346189335,1734769866581,-500.0,0.00019994,2]
[346189336,1734769866591,-1431.58,0.00019994,2]
[346189337,1734769866600,-1062.77,0.00019994,2]
[346189338,1734769866610,-500.0,0.00019994,2]
[346189339,1734769866620,-955.25,0.00019994,2]
[346189340,1734769866629,-1134.38,0.00019994,2]
[346189341,1734769866639,-762.27,0.00019994,2]
[346189342,1734769866648,-759.77,0.00019994,2]
[346189343,1734769866658,-852.61,0.00019994,2]
[346189344,1734769866667,-500.0,0.00019994,2]
[346189345,1734769866676,-1483.74,0.00019994,2]
[346189346,1734769866686,-666.82,0.00019994,2]
[346189347,1734769866695,-500.0,0.00019994,2]
[346189348,1734769866705,-926.1,0.00019994,2]
[346189349,1734769866714,-500.0,0.00019994,2]
[346189350,1734769866724,-617.66,0.00019994,2]
[346189351,1734769866733,-783.6,0.00019994,2]
[346189352,1734769866918,-500.0,0.00019994,2]
[346189353,1734769866928,-982.44,0.00019994,2]
[346189354,1734769866938,-1160.56,0.00019994,2]
[346189355,1734769866947,-500.0,0.00019994,2]
[346189356,1734769866957,-500.0,0.00019994,2]
[346189357,1734769866967,-531.21,0.00019994,2]
[346189358,1734769866976,-150.0,0.00019997,2]
[346189359,1734769866985,-692.41,0.00019997,2]
[346189360,1734769866995,-60166.22600015,0.0002,3]
[346189361,1734769867006,-700.0,0.0002,2]
[346189362,1734769867015,-254.1,0.0002,2]
[346189363,1734769867024,-3000.0,0.0002,2]
[346189364,1734769867033,-154.605133,0.0002,2]
[346189365,1734769867044,-6026.86858725,0.0002,2]
[346189366,1734769867057,-7860.6097873,0.0002,2]
[346189367,1734769867067,-297.41767599,0.0002,2]
[346189368,1734769867077,-162.562606,0.0002,2]
[346189369,1734769867087,-162.562606,0.0002,2]
[346189370,1734769867096,-8511.88013636,0.0002,2]
[346189371,1734769867106,-700240.37255386,0.0002,60]
[346189372,1734769867115,-24999.999997,0.0002,2]
[346189373,1734769867126,-1388.85321932,0.0002,5]
[346189374,1734769867135,-818.84367,0.0002,2]
[346189375,1734769867145,-735.01191601,0.0002,2]
[346189376,1734769867154,-818.84367,0.0002,2]
[346189377,1734769867164,-151.0,0.0002,2]
[346189378,1734769867173,-19026.79632601,0.0002,2]
[346189379,1734769867183,-546.544357,0.0002,2]
[346189380,1734769867193,-4500.57036265,0.0002,2]
[346189381,1734769867203,-546.544357,0.0002,2]
[346189382,1734769867212,-151.0,0.0002,2]
[346189383,1734769867222,-44150.34283966,0.0002,4]
[346189384,1734769867232,-8621.90081,0.0002,2]
[346189385,1734769867241,-8621.90081,0.0002,2]
[346189386,1734769867251,-3950.0,0.0002,2]
[346189387,1734769867262,-189.290281,0.0002,2]
[346189388,1734769867271,-500.0,0.0002,2]
[346189389,1734769867280,-56948.8371981,0.0002,2]
[346189390,1734769867289,-189.290281,0.0002,2]
[346189391,1734769867299,-151.0,0.0002,2]
[346189392,1734769867308,-1236.25371155,0.0002,2]
[346189393,1734769867318,-2006.63,0.0002,2]
[346189394,1734769867327,-152.365062,0.0002,2]
[346189395,1734769867336,-500.0,0.0002,2]
[346189396,1734769867346,-152.365062,0.0002,2]
[346189397,1734769867355,-500.0,0.0002,2]
[346189398,1734769867365,-2771.45120147,0.0002,7]
[346189399,1734769867374,-8025.11209977,0.0002,2]
[346189400,1734769867383,-2236.16,0.0002,2]
[346189401,1734769867393,-2051.78890751,0.0002,2]
[346189402,1734769867402,-33685.90734444,0.0002,2]
[346189403,1734769867412,-811.88334894,0.0002,2]
[346189404,1734769867421,-240.91148065,0.0002,2]
[346189405,1734769867431,-1041.22,0.0002,2]
[346189406,1734769867441,-1756.06,0.0002,2]
[346189407,1734769867450,-151.0,0.0002,2]
[346189408,1734769867459,-151.0,0.0002,2]
[346189409,1734769867469,-151.0,0.0002,2]
[346189410,1734769867478,-500.0,0.0002,2]
[346189411,1734769867488,-200.554304,0.0002,2]
[346189412,1734769867497,-500.0,0.0002,2]
[346189413,1734769867509,-3286.21,0.0002,2]
[346189414,1734769867518,-3384.13,0.0002,2]
[346189415,1734769867528,-3504.58,0.0002,2]
[346189416,1734769867538,-151.0,0.0002,2]
[346189417,1734769867547,-1682.69,0.0002,2]
[346189418,1734769867556,-500.0,0.0002,2]
[346189419,1734769867566,-287.340753,0.0002,2]
[346189420,1734769867576,-208.35921,0.0002,2]
[346189421,1734769867586,-208.35921,0.0002,2]
[346189422,1734769867596,-4268.95,0.0002,2]
[346189423,1734769867606,-1665.688369,0.0002,2]
[346189424,1734769867615,-1837.3,0.0002,2]
[346189425,1734769867624,-1665.688369,0.0002,2]
[346189426,1734769867633,-500.0,0.0002,2]
[346189427,1734769867642,-1195.99,0.0002,2]
[346189428,1734769867652,-1493.08,0.0002,2]
[346189429,1734769867661,-151.0,0.0002,2]
[346189430,1734769867671,-151.0,0.0002,2]
[346189431,1734769867680,-2337.63,0.0002,2]
[346189432,1734769867690,-234.017806,0.0002,2]
[346189433,1734769867700,-151.0,0.0002,2]
[346189434,1734769867709,-517.669,0.0002,2]
[346189435,1734769867718,-517.669,0.0002,2]
[346189436,1734769867728,-517.669,0.0002,2]
[346189437,1734769867738,-297.223263,0.0002,2]
[346189438,1734769867747,-517.669,0.0002,2]
[346189439,1734769867758,-517.669,0.0002,2]
[346189440,1734769867767,-517.669,0.0002,2]
[346189441,1734769867776,-517.669,0.0002,2]
[346189442,1734769867785,-517.669,0.0002,2]
[346189443,1734769867794,-517.669,0.0002,2]
[346189444,1734769867802,-517.669,0.0002,2]
[346189445,1734769867811,-297.223263,0.0002,2]
[346189446,1734769867820,-30824.23,0.0002,2]
[346189447,1734769867828,-1086.39,0.0002,2]
[346189448,1734769867837,-500.0,0.0002,2]
[346189449,1734769867846,-1126.87,0.0002,2]
[346189450,1734769867855,-1124.1,0.0002,2]
[346189451,1734769867865,-1271.09,0.0002,2]
[346189452,1734769867874,-500.0,0.0002,2]
[346189453,1734769867887,-615.26,0.0002,2]
[346189454,1734769867897,-1000.0,0.0002,2]
[346189455,1734769867906,-500.0,0.0002002,2]
[346189456,1734769867916,-500.0,0.0002002,2]
[346189457,1734769867925,-500.0,0.0002002,2]
[346189458,1734769867934,-500.0,0.0002002,2]
[346189459,1734769867943,-500.0,0.0002002,2]
[346189460,1734769867953,-500.0,0.0002002,2]
[346189461,1734769867962,-670.15,0.00020021,2]
[346189462,1734769867972,-2498.82,0.00020021,2]
[346189463,1734769867981,-534.2,0.00020021,2]
[346189464,1734769867991,-989.16,0.00020021,2]
[346189465,1734769868000,-1704.38,0.00020021,2]
[346189466,1734769868011,-155.072584,0.00020021,2]
[346189467,1734769868020,-1850.446606,0.00020021,2]
[346189468,1734769868030,-1732.72,0.00020021,2]
[346189469,1734769868039,-500.0,0.00020021,2]
[346189470,1734769868052,-1409.43,0.00020021,2]
[346189471,1734769868062,-2295.414532,0.00020021,2]
[346189472,1734769868071,-2264.0,0.00020021,2]
[346189473,1734769868080,-788.06,0.00020021,2]
[346189474,1734769868090,-624.58,0.00020021,2]
[346189475,1734769868099,-2855.29,0.00020021,2]
[346189476,1734769868109,-500.0,0.00020021,2]
[346189477,1734769868119,-649.35838382,0.00020021,2]
[346189478,1734769868128,-1040.51,0.00020021,2]
[346189479,1734769868137,-500.0,0.00020021,2]
[346189480,1734769868147,-2075.7,0.00020021,2]
[346189481,1734769868156,-1269.52,0.00020021,2]
[346189482,1734769868165,-7720.01,0.00020021,2]
[346189483,1734769868174,-1581.9,0.00020021,2]
[346189484,1734769868184,-1508.43,0.00020021,2]
[346189485,1734769868193,-500.0,0.00020021,2]
[346189486,1734769868202,-1248.42,0.00020021,2]
[346189487,1734769868212,-4712.38,0.00020021,2]
[346189488,1734769868221,-7848.69,0.00020021,2]
[346189489,1734769868230,-2305.0,0.00020021,2]
[346189490,1734769868240,-500.0,0.00020021,2]
[346189491,1734769868249,-500.0,0.00020021,2]
[346189492,1734769868261,-500.0,0.00020021,2]
[346189493,1734769868269,-153.376122,0.00020021,2]
[346189494,1734769868279,-500.0,0.00020021,2]
[346189495,1734769868287,-8230.89,0.00020021,2]